[Event "Late-Titled-Tuesday-Blitz-March-12-2024"]
[Site "Chess.com"]
[Date "2024.03.12"]
[Round "6"]
[White "Alex_Banzea"]
[Black "MatthewG-p4p"]
[Result "0-1"]
[WhiteElo "2659"]
[BlackElo "2913"]
[TimeControl "180+1"]
[EndTime "15:07:06 PDT"]
[Termination "MatthewG-p4p won on time"]

1. d4 {[%clk 0:03:00.9]} 1... d5 {[%clk 0:02:58.6]} 2. Nc3 {[%clk 0:03:01.5]}
2... Nf6 {[%clk 0:02:57.6]} 3. Bf4 {[%clk 0:03:02.1]} 3... c5 {[%clk 0:02:58.1]}
4. e3 {[%clk 0:03:02.6]} 4... Bg4 {[%clk 0:02:58]} 5. f3 {[%clk 0:02:54.5]} 5...
Bd7 {[%clk 0:02:54.8]} 6. dxc5 {[%clk 0:02:50.1]} 6... Nc6 {[%clk 0:02:53.9]} 7.
Nxd5 {[%clk 0:02:36.9]} 7... e5 {[%clk 0:02:53.9]} 8. Bg5 {[%clk 0:02:11.5]}
8... Qa5+ {[%clk 0:02:53.8]} 9. c3 {[%clk 0:02:01.8]} 9... Nxd5 {[%clk
0:02:53.7]} 10. Qxd5 {[%clk 0:02:00.8]} 10... f6 {[%clk 0:02:53.9]} 11. Bh4
{[%clk 0:01:43.9]} 11... Bxc5 {[%clk 0:02:53.8]} 12. Bf2 {[%clk 0:01:26.2]}
12... O-O-O {[%clk 0:02:52.7]} 13. Qb3 {[%clk 0:01:14.8]} 13... Nb4 {[%clk
0:02:07]} 14. a4 {[%clk 0:01:03.9]} 14... Bc6 {[%clk 0:01:08.7]} 15. Bc4 {[%clk
0:01:03.2]} 15... Nd3+ {[%clk 0:01:06.6]} 16. Bxd3 {[%clk 0:01:01.7]} 16... Rxd3
{[%clk 0:01:07.5]} 17. Qc4 {[%clk 0:00:39]} 17... Rxe3+ {[%clk 0:00:10.7]} 18.
Bxe3 {[%clk 0:00:38]} 18... Bxe3 {[%clk 0:00:11.6]} 19. b4 {[%clk 0:00:30.9]}
19... Qd5 {[%clk 0:00:11.6]} 20. Qxd5 {[%clk 0:00:27.9]} 20... Bxd5 {[%clk
0:00:12.5]} 21. Ke2 {[%clk 0:00:20.6]} 21... Bh6 {[%clk 0:00:12.2]} 22. Nh3
{[%clk 0:00:19.4]} 22... Bc4+ {[%clk 0:00:10.4]} 23. Kf2 {[%clk 0:00:19]} 23...
Kc7 {[%clk 0:00:11.3]} 24. Rhd1 {[%clk 0:00:16.5]} 24... Kc6 {[%clk 0:00:11]}
25. Ng1 {[%clk 0:00:16]} 25... Bb3 {[%clk 0:00:10.9]} 26. Rdb1 {[%clk 0:00:11]}
26... Bc2 {[%clk 0:00:10.7]} 27. Rb2 {[%clk 0:00:11.2]} 27... Bf5 {[%clk
0:00:09.7]} 28. g4 {[%clk 0:00:10.8]} 28... Be6 {[%clk 0:00:09.7]} 29. Ne2
{[%clk 0:00:11.7]} 29... Rd8 {[%clk 0:00:09.6]} 30. Ng3 {[%clk 0:00:12.3]} 30...
Rd3 {[%clk 0:00:09.6]} 31. Ne4 {[%clk 0:00:11.3]} 31... Bd5 {[%clk 0:00:07.4]}
32. Ke2 {[%clk 0:00:11.1]} 32... Bc4 {[%clk 0:00:07.3]} 33. Kf2 {[%clk
0:00:10.6]} 33... Bf4 {[%clk 0:00:07.4]} 34. Raa2 {[%clk 0:00:10.4]} 34... Bxa2
{[%clk 0:00:07]} 35. Rxa2 {[%clk 0:00:10.2]} 35... g6 {[%clk 0:00:07.1]} 36. Ke2
{[%clk 0:00:10.1]} 36... Re3+ {[%clk 0:00:06.6]} 37. Kf2 {[%clk 0:00:10.2]}
37... f5 {[%clk 0:00:07.5]} 38. gxf5 {[%clk 0:00:09.8]} 38... gxf5 {[%clk
0:00:08.4]} 39. Ng3 {[%clk 0:00:04.5]} 39... Rxc3 {[%clk 0:00:08.1]} 40. Nxf5
{[%clk 0:00:05]} 40... Rb3 {[%clk 0:00:08.2]} 41. b5+ {[%clk 0:00:04.3]} 41...
Kd5 {[%clk 0:00:08.4]} 42. h3 {[%clk 0:00:02.7]} 42... Ke6 {[%clk 0:00:08.4]}
43. Ng3 {[%clk 0:00:02.5]} 43... Be3+ {[%clk 0:00:08.3]} 44. Kg2 {[%clk
0:00:02.7]} 44... Bf4 {[%clk 0:00:08.7]} 45. Ne4 {[%clk 0:00:03.1]} 45... Kd5
{[%clk 0:00:09]} 46. Rc2 {[%clk 0:00:02.9]} 46... Ra3 {[%clk 0:00:08.8]} 47.
Rc5+ {[%clk 0:00:03.1]} 47... Kd4 {[%clk 0:00:09.4]} 48. Rc7 {[%clk 0:00:04]}
48... Ra2+ {[%clk 0:00:09.9]} 49. Kf1 {[%clk 0:00:04.5]} 49... Ke3 {[%clk
0:00:10.4]} 50. Rc3+ {[%clk 0:00:04.6]} 50... Kd4 {[%clk 0:00:11.2]} 51. Rc7
{[%clk 0:00:05.1]} 51... b6 {[%clk 0:00:11]} 52. Rc3 {[%clk 0:00:04.5]} 52...
Rxa4 {[%clk 0:00:10.4]} 53. Rb3 {[%clk 0:00:04.3]} 53... Kc4 {[%clk 0:00:09.3]}
54. Rc3+ {[%clk 0:00:04.3]} 54... Kxb5 {[%clk 0:00:09.2]} 55. Rc7 {[%clk
0:00:03.9]} 55... Ra2 {[%clk 0:00:09]} 56. Nc3+ {[%clk 0:00:04]} 56... Ka6
{[%clk 0:00:07.5]} 57. Nxa2 {[%clk 0:00:04.9]} 57... b5 {[%clk 0:00:08.1]} 58.
Nb4+ {[%clk 0:00:04.9]} 58... Kb6 {[%clk 0:00:08.3]} 59. Nd5+ {[%clk 0:00:05.4]}
59... Ka5 {[%clk 0:00:09.1]} 60. Nxf4 {[%clk 0:00:06.3]} 60... exf4 {[%clk
0:00:10]} 61. Rf7 {[%clk 0:00:06.4]} 61... b4 {[%clk 0:00:10.1]} 62. Rxf4 {[%clk
0:00:07.3]} 62... b3 {[%clk 0:00:10.5]} 63. Ke2 {[%clk 0:00:08.2]} 63... b2
{[%clk 0:00:10.7]} 64. Rf5+ {[%clk 0:00:08.5]} 64... Ka6 {[%clk 0:00:09.5]} 65.
Rf6+ {[%clk 0:00:07.9]} 65... Kb7 {[%clk 0:00:06.6]} 66. Rf7+ {[%clk 0:00:08.5]}
66... Kb6 {[%clk 0:00:06.6]} 67. Rf8 {[%clk 0:00:07.3]} 67... Kc7 {[%clk
0:00:07]} 68. Rf7+ {[%clk 0:00:05.6]} 68... Kc6 {[%clk 0:00:07.4]} 69. Rf6+
{[%clk 0:00:04.9]} 69... Kc5 {[%clk 0:00:07.8]} 70. Rf5+ {[%clk 0:00:04.3]}
70... Kc4 {[%clk 0:00:08.1]} 71. Rf4+ {[%clk 0:00:03.5]} 71... Kc3 {[%clk
0:00:08.5]} 72. Rf8 {[%clk 0:00:01.2]} 72... b1=Q {[%clk 0:00:08.9]} 0-1

[Event "Late-Titled-Tuesday-Blitz-March-12-2024"]
[Site "Chess.com"]
[Date "2024.03.12"]
[Round "6"]
[White "Machidon"]
[Black "Mikasinski"]
[Result "1/2-1/2"]
[WhiteElo "2509"]
[BlackElo "2667"]
[TimeControl "180+1"]
[EndTime "15:07:07 PDT"]
[Termination "Game drawn by repetition"]

1. d4 {[%clk 0:03:00.9]} 1... Nf6 {[%clk 0:03:00.2]} 2. c4 {[%clk 0:02:59.4]}
2... e6 {[%clk 0:03:00.3]} 3. Nf3 {[%clk 0:02:58.9]} 3... Bb4+ {[%clk
0:02:59.9]} 4. Nbd2 {[%clk 0:02:58.4]} 4... d5 {[%clk 0:02:58.6]} 5. e3 {[%clk
0:02:53.3]} 5... O-O {[%clk 0:02:58.3]} 6. a3 {[%clk 0:02:53.5]} 6... Bxd2+
{[%clk 0:02:56.2]} 7. Qxd2 {[%clk 0:02:53.5]} 7... c5 {[%clk 0:02:53.5]} 8. dxc5
{[%clk 0:02:52.5]} 8... a5 {[%clk 0:02:53.5]} 9. cxd5 {[%clk 0:02:40.5]} 9...
exd5 {[%clk 0:02:52.5]} 10. Bd3 {[%clk 0:02:39.7]} 10... Nc6 {[%clk 0:02:48.2]}
11. O-O {[%clk 0:02:32.5]} 11... Bg4 {[%clk 0:02:47.6]} 12. Nd4 {[%clk 0:02:32]}
12... Ne5 {[%clk 0:02:46.4]} 13. b3 {[%clk 0:02:24]} 13... Rc8 {[%clk
0:02:40.3]} 14. b4 {[%clk 0:02:22.8]} 14... b6 {[%clk 0:02:28.4]} 15. Bb2 {[%clk
0:02:18.3]} 15... axb4 {[%clk 0:02:25.4]} 16. axb4 {[%clk 0:02:19.2]} 16... bxc5
{[%clk 0:02:24.6]} 17. bxc5 {[%clk 0:02:20.1]} 17... Rxc5 {[%clk 0:02:22.6]} 18.
Ba3 {[%clk 0:02:19.7]} 18... Rc8 {[%clk 0:01:54.1]} 19. Bxf8 {[%clk 0:02:19]}
19... Qxf8 {[%clk 0:01:52.8]} 20. Rfc1 {[%clk 0:02:15.6]} 20... h5 {[%clk
0:01:48.1]} 21. Bf5 {[%clk 0:02:12.7]} 21... Rxc1+ {[%clk 0:01:41.4]} 22. Rxc1
{[%clk 0:02:11.3]} 22... Bxf5 {[%clk 0:01:38.6]} 23. Nxf5 {[%clk 0:02:11.5]}
23... Nc4 {[%clk 0:01:32]} 24. Qd4 {[%clk 0:02:07.5]} 24... Qa3 {[%clk 0:01:32]}
25. Qc3 {[%clk 0:02:04.1]} 25... Qf8 {[%clk 0:01:08.2]} 26. h3 {[%clk
0:01:54.5]} 26... Kh7 {[%clk 0:00:57.8]} 27. Qd3 {[%clk 0:01:49.1]} 27... g6
{[%clk 0:00:55.3]} 28. Nd4 {[%clk 0:01:41.9]} 28... Qd6 {[%clk 0:00:51.7]} 29.
Ne2 {[%clk 0:01:39.7]} 29... Qe5 {[%clk 0:00:46.8]} 30. Qd4 {[%clk 0:01:37]}
30... Qf5 {[%clk 0:00:43.2]} 31. Nf4 {[%clk 0:01:34.8]} 31... Nd6 {[%clk
0:00:29.6]} 32. Rc6 {[%clk 0:01:28.2]} 32... Nde8 {[%clk 0:00:16.3]} 33. Rc5
{[%clk 0:01:24]} 33... g5 {[%clk 0:00:05.7]} 34. Qd3 {[%clk 0:01:21.7]} 34...
Qxd3 {[%clk 0:00:03.7]} 35. Nxd3 {[%clk 0:01:22.6]} 35... Kg6 {[%clk 0:00:02.7]}
36. Nb4 {[%clk 0:01:21.2]} 36... Nd6 {[%clk 0:00:01.8]} 37. Nxd5 {[%clk
0:01:20.9]} 37... Nde4 {[%clk 0:00:02.4]} 38. Rc6 {[%clk 0:01:19.5]} 38... Kf5
{[%clk 0:00:01.9]} 39. Nxf6 {[%clk 0:01:19.3]} 39... Nxf6 {[%clk 0:00:02.3]} 40.
f3 {[%clk 0:01:19.7]} 40... Kg6 {[%clk 0:00:01.7]} 41. g4 {[%clk 0:01:19.8]}
41... h4 {[%clk 0:00:01.9]} 42. Kf2 {[%clk 0:01:19.7]} 42... Kg7 {[%clk
0:00:02.2]} 43. f4 {[%clk 0:01:19.9]} 43... Ne4+ {[%clk 0:00:01.7]} 44. Kf3
{[%clk 0:01:20.1]} 44... Nd2+ {[%clk 0:00:02]} 45. Ke2 {[%clk 0:01:20.7]} 45...
Ne4 {[%clk 0:00:02.5]} 46. Kd3 {[%clk 0:01:19.5]} 46... Nf2+ {[%clk 0:00:02.6]}
47. Kd4 {[%clk 0:01:20]} 47... Nxh3 {[%clk 0:00:03.3]} 48. Ke5 {[%clk
0:01:17.3]} 48... gxf4 {[%clk 0:00:01.6]} 49. exf4 {[%clk 0:01:18.2]} 49... Nf2
{[%clk 0:00:02.2]} 50. Kf5 {[%clk 0:01:18.4]} 50... h3 {[%clk 0:00:02.6]} 51. g5
{[%clk 0:01:03.4]} 51... h2 {[%clk 0:00:03]} 52. Rh6 {[%clk 0:01:03.3]} 52...
h1=Q {[%clk 0:00:03]} 53. Rxh1 {[%clk 0:01:04.2]} 53... Nxh1 {[%clk 0:00:03.6]}
54. Kg4 {[%clk 0:00:56.9]} 54... Nf2+ {[%clk 0:00:03.9]} 55. Kh5 {[%clk
0:00:56.9]} 55... Ne4 {[%clk 0:00:02.5]} 56. f5 {[%clk 0:00:54.3]} 56... Ng3+
{[%clk 0:00:03]} 57. Kg4 {[%clk 0:00:54.1]} 57... Ne4 {[%clk 0:00:03.4]} 58. Kh5
{[%clk 0:00:54.3]} 58... Nd6 {[%clk 0:00:02.6]} 59. Kg4 {[%clk 0:00:51.7]} 59...
Kf8 {[%clk 0:00:03.1]} 60. Kf4 {[%clk 0:00:50.1]} 60... Ke7 {[%clk 0:00:03.5]}
61. Ke5 {[%clk 0:00:48.5]} 61... Nc4+ {[%clk 0:00:03.9]} 62. Kd5 {[%clk
0:00:48.5]} 62... Ne3+ {[%clk 0:00:04.1]} 63. Ke5 {[%clk 0:00:49]} 63... Ng4+
{[%clk 0:00:03.2]} 64. Kf4 {[%clk 0:00:48.9]} 64... Nf2 {[%clk 0:00:03.8]} 65.
Ke5 {[%clk 0:00:48.4]} 65... Nh3 {[%clk 0:00:02.9]} 66. f6+ {[%clk 0:00:34.4]}
66... Kd7 {[%clk 0:00:02]} 67. Kf5 {[%clk 0:00:34.8]} 67... Nxg5 {[%clk
0:00:02.5]} 68. Kxg5 {[%clk 0:00:35.4]} 68... Ke6 {[%clk 0:00:02.9]} 69. Kg4
{[%clk 0:00:33.6]} 69... Ke5 {[%clk 0:00:02.6]} 70. Kg5 {[%clk 0:00:33.4]} 70...
Ke6 {[%clk 0:00:03.2]} 71. Kg4 {[%clk 0:00:33.6]} 71... Kxf6 {[%clk 0:00:02.3]}
72. Kf4 {[%clk 0:00:34.2]} 72... Ke6 {[%clk 0:00:02.8]} 73. Ke4 {[%clk
0:00:33.8]} 73... Ke7 {[%clk 0:00:03.1]} 74. Ke5 {[%clk 0:00:33.9]} 74... Kf8
{[%clk 0:00:03.1]} 75. Kf6 {[%clk 0:00:34.1]} 75... Kg8 {[%clk 0:00:04]} 76. Kf5
{[%clk 0:00:34.6]} 76... Kg7 {[%clk 0:00:04.6]} 77. Kg5 {[%clk 0:00:34.9]} 77...
f6+ {[%clk 0:00:05.3]} 78. Kf5 {[%clk 0:00:35.3]} 78... Kf7 {[%clk 0:00:06.2]}
79. Kf4 {[%clk 0:00:35.6]} 79... Ke6 {[%clk 0:00:06.9]} 80. Ke4 {[%clk
0:00:35.6]} 80... Ke7 {[%clk 0:00:07.8]} 81. Kf4 {[%clk 0:00:36]} 81... Kf7
{[%clk 0:00:08.7]} 82. Kg4 {[%clk 0:00:36.4]} 82... Kg7 {[%clk 0:00:09.6]} 83.
Kf4 {[%clk 0:00:37.1]} 83... Kg6 {[%clk 0:00:10.3]} 84. Kg4 {[%clk 0:00:37.7]}
84... f5+ {[%clk 0:00:10.5]} 85. Kf4 {[%clk 0:00:38.3]} 85... Kf6 {[%clk
0:00:11.2]} 86. Kf3 {[%clk 0:00:38.6]} 86... Ke5 {[%clk 0:00:11.9]} 87. Ke3
{[%clk 0:00:39]} 87... Ke6 {[%clk 0:00:12.8]} 88. Kf4 {[%clk 0:00:39.4]} 88...
Kf6 {[%clk 0:00:13.6]} 89. Kf3 {[%clk 0:00:40.1]} 89... Kg5 {[%clk 0:00:14.5]}
90. Kg3 {[%clk 0:00:40.5]} 90... f4+ {[%clk 0:00:15.4]} 91. Kf3 {[%clk 0:00:41]}
91... Kf5 {[%clk 0:00:16.3]} 92. Kf2 {[%clk 0:00:40.7]} 92... Ke5 {[%clk
0:00:16.3]} 93. Kf3 {[%clk 0:00:40.9]} 93... Kf5 {[%clk 0:00:17.2]} 94. Kf2
{[%clk 0:00:41.5]} 94... Ke4 {[%clk 0:00:18.1]} 95. Ke2 {[%clk 0:00:41.8]} 95...
Ke5 {[%clk 0:00:19]} 96. Kf3 {[%clk 0:00:41.7]} 96... Kf5 {[%clk 0:00:19.9]}
1/2-1/2

[Event "Late-Titled-Tuesday-Blitz-March-12-2024"]
[Site "Chess.com"]
[Date "2024.03.12"]
[Round "6"]
[White "TimGrutter03"]
[Black "Flaccidmoves"]
[Result "1/2-1/2"]
[WhiteElo "2578"]
[BlackElo "2419"]
[TimeControl "180+1"]
[EndTime "15:07:11 PDT"]
[Termination "Game drawn - insufficient material"]

1. e4 {[%clk 0:02:46.9]} 1... d5 {[%clk 0:02:55.6]} 2. exd5 {[%clk 0:02:47.2]}
2... Nf6 {[%clk 0:02:54.7]} 3. Nf3 {[%clk 0:02:42.9]} 3... Qxd5 {[%clk
0:02:44.5]} 4. Nc3 {[%clk 0:02:42.6]} 4... Qd8 {[%clk 0:02:42.6]} 5. d4 {[%clk
0:02:40.3]} 5... Bg4 {[%clk 0:02:34]} 6. Bc4 {[%clk 0:02:39.5]} 6... e6 {[%clk
0:02:33.3]} 7. Be3 {[%clk 0:02:37.8]} 7... c6 {[%clk 0:02:30.6]} 8. h3 {[%clk
0:02:38]} 8... Bxf3 {[%clk 0:02:28.7]} 9. Qxf3 {[%clk 0:02:37.5]} 9... Bb4
{[%clk 0:02:26.5]} 10. O-O {[%clk 0:02:31.1]} 10... O-O {[%clk 0:02:25.4]} 11.
Rfd1 {[%clk 0:02:28.8]} 11... Nbd7 {[%clk 0:02:24.5]} 12. Bg5 {[%clk 0:02:27.6]}
12... Qa5 {[%clk 0:02:21.5]} 13. Bh4 {[%clk 0:02:23.4]} 13... Bxc3 {[%clk
0:02:18]} 14. bxc3 {[%clk 0:02:23.9]} 14... Nd5 {[%clk 0:02:16.8]} 15. Rd3
{[%clk 0:02:05]} 15... b5 {[%clk 0:02:14.8]} 16. Bb3 {[%clk 0:02:04.4]} 16...
N7b6 {[%clk 0:02:14.4]} 17. Qg4 {[%clk 0:01:59.7]} 17... Nc4 {[%clk 0:02:06.7]}
18. Re1 {[%clk 0:01:52.3]} 18... Rae8 {[%clk 0:01:46.6]} 19. Rg3 {[%clk
0:01:32.4]} 19... g6 {[%clk 0:01:46.4]} 20. Bg5 {[%clk 0:01:33]} 20... f5 {[%clk
0:01:40]} 21. Qh4 {[%clk 0:01:25.4]} 21... Qc7 {[%clk 0:01:31.7]} 22. Bh6 {[%clk
0:01:12.5]} 22... Rf7 {[%clk 0:01:31]} 23. Rd3 {[%clk 0:01:04.8]} 23... Qd8
{[%clk 0:01:13.9]} 24. Bg5 {[%clk 0:01:01.8]} 24... Qd6 {[%clk 0:01:11.3]} 25.
a4 {[%clk 0:00:51.7]} 25... a5 {[%clk 0:01:02.7]} 26. Rf3 {[%clk 0:00:26.1]}
26... Ncb6 {[%clk 0:00:42.5]} 27. Ra1 {[%clk 0:00:18.4]} 27... Nxa4 {[%clk
0:00:34.7]} 28. Bxa4 {[%clk 0:00:18]} 28... bxa4 {[%clk 0:00:35.6]} 29. Rxa4
{[%clk 0:00:18.1]} 29... Qc7 {[%clk 0:00:27]} 30. c4 {[%clk 0:00:17.7]} 30...
Nb6 {[%clk 0:00:21.5]} 31. Rxa5 {[%clk 0:00:18]} 31... Nxc4 {[%clk 0:00:21.6]}
32. Ra1 {[%clk 0:00:18.7]} 32... Rd7 {[%clk 0:00:16.3]} 33. Rc3 {[%clk
0:00:17.2]} 33... Nb6 {[%clk 0:00:15.8]} 34. Bf4 {[%clk 0:00:13.8]} 34... Qb7
{[%clk 0:00:13.6]} 35. Be5 {[%clk 0:00:07.2]} 35... Nd5 {[%clk 0:00:13.5]} 36.
Rca3 {[%clk 0:00:07.6]} 36... Rf7 {[%clk 0:00:08.2]} 37. c4 {[%clk 0:00:07.7]}
37... Nb4 {[%clk 0:00:07.1]} 38. Rb3 {[%clk 0:00:07.3]} 38... Qe7 {[%clk
0:00:06]} 39. Qg3 {[%clk 0:00:06.1]} 39... Nc2 {[%clk 0:00:04.9]} 40. Rc1 {[%clk
0:00:04.5]} 40... Nxd4 {[%clk 0:00:03.4]} 41. Bxd4 {[%clk 0:00:04.5]} 41... e5
{[%clk 0:00:04.3]} 42. Bb6 {[%clk 0:00:03]} 42... f4 {[%clk 0:00:03.7]} 43. Qf3
{[%clk 0:00:03.1]} 43... e4 {[%clk 0:00:04.1]} 44. Qd1 {[%clk 0:00:03.6]} 44...
Qd7 {[%clk 0:00:03.4]} 45. Qxd7 {[%clk 0:00:03.1]} 45... Rxd7 {[%clk 0:00:04.3]}
46. Bc5 {[%clk 0:00:03.6]} 46... Rd2 {[%clk 0:00:03.7]} 47. Re1 {[%clk
0:00:03.3]} 47... Kf7 {[%clk 0:00:03.5]} 48. Bb4 {[%clk 0:00:03.8]} 48... Rc2
{[%clk 0:00:03.5]} 49. c5 {[%clk 0:00:03.6]} 49... Kf6 {[%clk 0:00:02.9]} 50.
Ba3 {[%clk 0:00:03.1]} 50... Kf5 {[%clk 0:00:02.3]} 51. Rb4 {[%clk 0:00:02.1]}
51... Re5 {[%clk 0:00:02.1]} 52. Bb2 {[%clk 0:00:02.3]} 52... Re6 {[%clk
0:00:01.8]} 53. Ba1 {[%clk 0:00:02]} 53... Rxc5 {[%clk 0:00:02]} 54. Bd4 {[%clk
0:00:02.2]} 54... Rc2 {[%clk 0:00:02.5]} 55. Rb7 {[%clk 0:00:02.6]} 55... c5
{[%clk 0:00:02.9]} 56. Ba1 {[%clk 0:00:02.7]} 56... c4 {[%clk 0:00:03.5]} 57.
Rxh7 {[%clk 0:00:02.9]} 57... c3 {[%clk 0:00:03.5]} 58. Rf7+ {[%clk 0:00:03.6]}
58... Kg5 {[%clk 0:00:03.8]} 59. h4+ {[%clk 0:00:04.2]} 59... Kxh4 {[%clk
0:00:03.9]} 60. Rxf4+ {[%clk 0:00:04.5]} 60... Kg5 {[%clk 0:00:04.5]} 61. Rfxe4
{[%clk 0:00:04.7]} 61... Rxe4 {[%clk 0:00:04.5]} 62. Rxe4 {[%clk 0:00:05.6]}
62... Rc1+ {[%clk 0:00:05.1]} 63. Kh2 {[%clk 0:00:06.2]} 63... Rxa1 {[%clk
0:00:06]} 64. Rc4 {[%clk 0:00:06.5]} 64... Rc1 {[%clk 0:00:06.2]} 65. Kg3 {[%clk
0:00:06.5]} 65... c2 {[%clk 0:00:06.5]} 66. Rc5+ {[%clk 0:00:07]} 66... Kf6
{[%clk 0:00:06.6]} 67. f3 {[%clk 0:00:07.4]} 67... g5 {[%clk 0:00:06.8]} 68.
Rc6+ {[%clk 0:00:06.9]} 68... Kf5 {[%clk 0:00:07]} 69. Rc5+ {[%clk 0:00:07.4]}
69... Kg6 {[%clk 0:00:07.4]} 70. Kg4 {[%clk 0:00:06.6]} 70... Kf6 {[%clk
0:00:07.8]} 71. Rc6+ {[%clk 0:00:06.7]} 71... Ke5 {[%clk 0:00:07.8]} 72. Kxg5
{[%clk 0:00:07.2]} 72... Kd4 {[%clk 0:00:08]} 73. g4 {[%clk 0:00:06.1]} 73...
Kd3 {[%clk 0:00:08.4]} 74. Rd6+ {[%clk 0:00:05.2]} 74... Ke3 {[%clk 0:00:08.4]}
75. f4 {[%clk 0:00:03.5]} 75... Rf1 {[%clk 0:00:08.3]} 76. Rc6 {[%clk
0:00:03.8]} 76... c1=Q {[%clk 0:00:08]} 77. Rxc1 {[%clk 0:00:04.7]} 77... Rxc1
{[%clk 0:00:08.3]} 78. f5 {[%clk 0:00:05.4]} 78... Kf3 {[%clk 0:00:08.7]} 79. f6
{[%clk 0:00:05]} 79... Rc4 {[%clk 0:00:08.5]} 80. f7 {[%clk 0:00:04]} 80...
Rxg4+ {[%clk 0:00:09.4]} 81. Kf6 {[%clk 0:00:04.5]} 81... Rf4+ {[%clk
0:00:10.3]} 82. Kg7 {[%clk 0:00:04.9]} 82... Rxf7+ {[%clk 0:00:10.5]} 83. Kxf7
{[%clk 0:00:05.8]} 1/2-1/2